bitfinex-derivatives/quotes_BNBF0:USTF0_20250309
["timestamp","ask_amount","ask_price","bid_price","bid_amount"]
[1741494811570,0.31255678,588.63,587.18,6.03861105]
[1741494812777,0.29603039,588.64,587.18,6.03861105]
[1741494812978,0.31255466,588.63,587.18,6.03861105]
[1741494813375,0.31255466,588.65,587.18,6.03861105]
[1741494813579,0.31255466,588.64,587.18,6.03861105]
[1741494813774,0.31255466,588.65,587.18,6.03861105]
[1741494814480,0.29603039,588.64,587.18,6.03861105]
[1741494814681,0.31255466,588.63,587.18,6.03861105]
[1741494814876,0.29603039,588.64,587.18,6.03861105]
[1741494816073,0.33975469,588.66,587.18,6.03861105]
[1741494816479,0.29603039,588.63,587.18,6.03861105]
[1741494819083,0.33975469,588.66,587.18,6.03861105]
[1741494819277,0.29603039,588.62,587.18,6.03861105]
[1741494822187,0.33975469,588.66,587.18,6.03861105]
[1741494822587,0.29601528,588.61,587.18,6.03861105]
[1741494825087,0.33975469,588.66,587.18,6.03861105]
[1741494826391,0.29595612,588.65,587.18,6.03861105]
[1741494828086,0.33975469,588.66,587.18,6.03861105]
[1741494829293,0.29597374,588.65,587.18,6.03861105]
[1741494829892,0.31253659,588.64,587.18,6.03861105]
[1741494831396,0.31253659,588.65,587.18,6.03861105]
[1741494831597,0.31253659,588.64,587.18,6.03861105]
[1741494831796,0.31253659,588.65,587.18,6.03861105]
[1741494831995,0.31253659,588.64,587.18,6.03861105]
[1741494832190,0.31253659,588.63,587.18,6.03861105]
[1741494833196,0.29600772,588.64,587.18,6.03861105]
[1741494833396,0.31253591,588.63,587.18,6.03861105]
[1741494834099,1.26952077,588.56,587.18,7.31478267]
[1741494834298,0.31253591,588.55,587.18,7.31478267]
[1741494834993,1.26952077,588.56,587.18,7.31478267]
[1741494835193,0.31255153,588.55,587.18,7.31478267]
[1741494835499,0.29603794,588.54,587.18,7.31478267]
[1741494835695,0.31255153,588.53,587.18,7.31478267]
[1741494837300,0.31255153,588.52,587.18,7.31478267]
[1741494837597,0.31255153,588.56,587.18,7.31478267]
[1741494837903,0.31255153,588.55,587.18,7.31478267]
[1741494838103,1.26952077,588.53,587.18,6.03861105]
[1741494838299,0.31255153,588.52,587.18,6.03861105]
[1741494840705,0.31256047,588.51,587.18,6.03861105]
[1741494840903,1.26952077,588.46,587.2,1.27617162]
[1741494841103,0.31256047,588.45,587.22,0.34058785]
[1741494844306,0.29605053,588.44,587.23,0.105]
[1741494844505,0.31256047,588.43,587.25,0.34057045]
[1741494847308,0.29604675,588.42,587.25,0.34057045]
[1741494847507,0.31256047,588.41,587.25,0.34057045]
[1741494849404,0.31254993,588.4,587.25,0.34057045]
[1741494849610,0.31254993,588.39,587.25,0.34057045]
[1741494849810,0.31254993,588.38,587.25,0.34057045]
[1741494850110,0.31254993,588.44,587.25,0.34057045]
[1741494850307,0.2960455,588.38,587.25,0.34057045]
[1741494850507,0.31254993,588.37,587.25,0.34057045]
[1741494851110,0.2960455,588.38,587.25,0.34057045]
[1741494851311,0.31254371,588.37,587.25,0.34057045]
[1741494852305,0.31254371,588.44,587.25,0.34057045]
[1741494852512,0.31254371,588.43,587.25,0.34057045]
[1741494852812,0.31254371,588.44,587.25,0.34057045]
[1741494853008,0.31254371,588.43,587.25,0.34057045]
[1741494853205,0.60859233,588.42,587.25,0.34057045]
[1741494853509,0.31254683,588.41,587.25,0.34057045]
[1741494855010,0.31254683,588.41,587.26,1.27617162]
[1741494855312,0.31254683,588.4,587.28,0.34055305]
[1741494855515,0.31254683,588.44,587.28,0.34055305]
[1741494855716,0.31254683,588.43,587.28,0.34055305]
[1741494855920,0.31254683,588.44,587.28,0.34055305]
[1741494856211,0.29604172,588.42,587.28,0.34055305]
[1741494856516,0.31254683,588.41,587.28,0.34055305]
[1741494858217,0.31254683,588.44,587.28,0.34055305]
[1741494858423,0.31254683,588.43,587.28,0.34055305]
[1741494858618,0.31254683,588.44,587.28,0.34055305]
[1741494859323,0.29604046,588.43,587.28,0.34055305]
[1741494859520,0.31254683,588.42,587.28,0.34055305]
[1741494860626,0.31254683,588.42,587.28,1.58555305]
[1741494861325,1.5820676,588.42,587.28,1.58555305]
[1741494861624,0.31254683,588.41,587.28,1.58555305]
[1741494862223,0.29604298,588.4,587.28,1.58555305]
[1741494862525,0.31254683,588.39,587.28,1.69055305]
[1741494864524,0.31254683,588.38,587.28,1.69055305]
[1741494864725,0.31254683,588.37,587.28,1.69055305]
[1741494864927,0.31254683,588.36,587.28,1.69055305]
[1741494865128,0.31254683,588.35,587.28,1.69055305]
[1741494865324,1.26952077,588.42,587.28,1.69055305]
[1741494865521,0.29604298,588.35,587.28,1.69055305]
[1741494865725,1.26952077,588.42,587.28,1.69055305]
[1741494865928,1.26952077,588.41,587.28,1.69055305]
[1741494866128,0.31254908,588.4,587.28,1.69055305]
[1741494866623,0.29604424,588.39,587.28,3.25155305]
[1741494866823,0.31254908,588.38,587.28,3.25155305]
[1741494867432,0.31254908,588.4,587.28,3.25155305]
[1741494867629,0.31254908,588.37,587.28,3.25155305]
[1741494867827,0.31254908,588.36,587.28,3.25155305]
[1741494868026,0.31254908,588.4,587.28,3.25155305]
[1741494868224,0.29604424,588.36,587.28,3.25155305]
[1741494868426,0.31254908,588.35,587.28,3.25155305]
[1741494868625,0.31254908,588.35,587.28,4.00455305]
[1741494870431,1.26952077,588.41,587.28,4.00455305]
[1741494870432,0.31254908,588.4,587.28,4.00455305]
[1741494870629,1.26952077,588.41,587.28,4.00455305]
[1741494870630,0.31254908,588.39,587.28,4.00455305]
[1741494870831,0.31254908,588.4,587.28,4.00455305]
[1741494871029,0.31254908,588.39,587.28,4.00455305]
[1741494871329,0.60859332,588.38,587.28,4.00455305]
[1741494871529,0.31254908,588.37,587.28,4.00455305]
[1741494873233,0.29604801,588.36,587.28,4.00455305]
[1741494873434,0.31255477,588.35,587.28,4.00455305]
[1741494876436,0.31255477,588.34,587.28,4.00455305]
[1741494876634,1.26952077,588.39,587.28,4.00455305]
[1741494877035,0.31255224,588.38,587.28,4.00455305]
[1741494877340,0.60859899,588.38,587.28,4.00455305]
[1741494877537,0.29604675,588.38,587.28,4.00455305]
[1741494879234,1.26952077,588.39,587.28,4.00455305]
[1741494879534,1.26952077,588.47,587.28,4.00455305]
[1741494879731,0.31255255,588.46,587.28,4.00455305]
[1741494880336,0.29603668,588.45,587.28,4.00455305]
[1741494880538,0.31255255,588.44,587.28,4.00455305]
[1741494882437,0.31255255,588.43,587.28,4.00455305]
[1741494882637,1.26952077,588.47,587.28,4.00455305]
[1741494882839,0.31252933,588.46,587.28,4.00455305]
[1741494883236,0.60856349,588.46,587.28,4.00455305]
[1741494883536,0.31252933,588.45,587.28,4.00455305]
[1741494883737,0.31252933,588.45,587.28,4.75955305]
[1741494884438,0.29603416,588.46,587.28,4.75955305]
[1741494884637,0.31253322,588.45,587.28,4.75955305]
[1741494885241,0.31253322,588.52,587.28,4.75955305]
[1741494886239,0.29602661,588.51,587.28,4.75955305]
[1741494886540,0.31253322,588.5,587.28,4.75955305]
[1741494888234,1.26952077,588.54,587.28,4.75955305]
[1741494888437,0.31252681,588.53,587.28,4.75955305]
[1741494888833,1.26952077,588.54,587.28,4.75955305]
[1741494889241,0.29601024,588.53,587.28,4.75955305]
[1741494890242,1.26952077,588.51,587.28,4.75955305]
[1741494892943,0.29601024,588.53,587.28,4.75955305]
[1741494896843,0.3125934,588.52,587.28,4.75955305]
[1741494897448,0.3125934,588.65,587.28,4.75955305]
[1741494897745,0.29602661,588.51,587.28,4.75955305]
[1741494897940,0.3125934,588.5,587.28,4.75955305]
[1741494898346,0.33975469,588.66,587.28,4.75955305]
[1741494898544,0.29601024,588.49,587.28,4.75955305]
[1741494898846,0.33975469,588.66,587.28,4.75955305]
[1741494899048,0.312569,588.65,587.28,4.75955305]
[1741494900347,0.6085809,588.64,587.28,4.75955305]
[1741494900648,0.31257066,588.63,587.28,4.75955305]
[1741494902047,0.29601024,588.64,587.28,4.75955305]
[1741494906147,0.33975469,588.66,587.28,4.75955305]
[1741494906449,0.29602535,588.63,587.28,4.75955305]
[1741494906644,0.29602535,588.63,587.28,5.74355305]
[1741494909247,0.33975469,588.66,587.28,5.74355305]
[1741494910450,0.29598255,588.65,587.28,5.74355305]
[1741494910649,0.33976624,588.64,587.28,5.74355305]
[1741494911245,0.31269534,588.63,587.28,5.74355305]
[1741494911449,0.33977778,588.62,587.28,5.74355305]
[1741494913248,0.60873644,588.61,587.28,5.74355305]
[1741494913455,0.65249916,588.6,587.28,5.74355305]
[1741494913648,0.65250493,588.59,587.28,5.74355305]
[1741494913851,0.6525107,588.58,587.28,5.74355305]
[1741494914152,0.65251648,588.57,587.28,5.74355305]
[1741494914347,0.33981242,588.56,587.28,5.74355305]
[1741494914547,0.31270983,588.55,587.28,5.74355305]
[1741494914751,0.33982397,588.54,587.28,5.74355305]
[1741494914952,0.31270983,588.53,587.28,5.74355305]
[1741494915149,0.33983551,588.52,587.28,5.74355305]
[1741494915353,0.31270983,588.51,587.28,5.74355305]
[1741494915553,0.33984706,588.5,587.28,5.74355305]
[1741494915753,0.31270983,588.49,587.28,5.74355305]
[1741494916055,0.33985861,588.48,587.28,5.74355305]
[1741494916256,0.31270983,588.47,587.28,5.74355305]
[1741494916457,0.33987016,588.46,587.28,5.74355305]
[1741494916759,0.31270983,588.45,587.28,5.74355305]
[1741494917053,0.33988172,588.44,587.28,5.74355305]
[1741494917253,0.31270983,588.43,587.28,5.74355305]
[1741494917450,0.33989327,588.42,587.28,5.74355305]
[1741494917655,0.31270983,588.41,587.28,5.74355305]
[1741494921458,0.29613241,588.4,587.28,5.74355305]
[1741494921966,0.31276242,588.39,587.28,5.74355305]
[1741494922158,0.65267302,588.39,587.28,5.74355305]
[1741494922359,0.6526788,588.38,587.28,5.74355305]
[1741494922558,0.31276242,588.37,587.28,5.74355305]
[1741494922963,0.33992793,588.36,587.28,5.74355305]
[1741494923160,0.31276242,588.35,587.28,5.74355305]
[1741494923461,0.33993949,588.34,587.28,5.74355305]
[1741494923962,0.31276242,588.33,587.28,5.74355305]
[1741494924162,0.33995104,588.32,587.28,5.74355305]
[1741494924359,0.31276242,588.31,587.28,5.74355305]
[1741494924562,0.3399626,588.3,587.28,5.74355305]
[1741494924764,0.31276242,588.29,587.28,5.74355305]
[1741494927467,0.29617651,588.28,587.28,5.74355305]
[1741494927769,0.31276242,588.27,587.28,5.74355305]
[1741494930569,0.31276242,588.26,587.28,5.74355305]
[1741494930763,0.31276242,588.25,587.28,5.74355305]
[1741494931069,0.31276242,588.24,587.28,5.74355305]
[1741494931369,0.31276242,588.23,587.28,5.74355305]
[1741494933773,0.6089465,588.22,587.28,5.74355305]
[1741494933972,0.31276242,588.21,587.28,5.74355305]
[1741494934972,0.31284973,588.2,587.28,5.74355305]
[1741494935173,0.31284973,588.21,587.28,5.74355305]
[1741494935368,0.31284973,588.19,587.28,5.74355305]
[1741494935569,0.31284973,588.18,587.28,5.74355305]
[1741494935769,0.31284973,588.21,587.28,5.74355305]
[1741494935972,0.31284973,588.2,587.28,5.74355305]
[1741494936173,0.31284973,588.21,587.28,5.74355305]
[1741494936374,0.2961866,588.19,587.28,5.74355305]
[1741494936677,0.31284973,588.18,587.28,5.74355305]
[1741494939375,0.31284973,588.29,587.28,5.74355305]
[1741494939572,0.29619038,588.17,587.28,5.74355305]
[1741494939775,0.31284973,588.16,587.28,5.74355305]
[1741494940174,0.31284973,588.29,587.28,5.74355305]
[1741494940374,0.31284973,588.28,587.28,5.74355305]
[1741494940578,0.29617651,588.15,587.28,5.74355305]
[1741494940880,0.3399626,588.3,587.28,5.74355305]
[1741494941073,0.29617904,588.14,587.28,5.74355305]
[1741494941478,0.3399626,588.3,587.28,5.74355305]
[1741494941679,0.31283826,588.29,587.28,5.74355305]
[1741494942483,0.29617651,588.28,587.28,5.74355305]
[1741494942681,0.31283826,588.27,587.28,5.74355305]
[1741494944189,0.29617651,588.28,587.28,5.74355305]
[1741494944684,0.31277246,588.27,587.28,5.74355305]
[1741494945283,0.31277246,588.29,587.28,5.74355305]
[1741494945487,0.29615131,588.26,587.28,5.74355305]
[1741494945682,0.31277246,588.25,587.28,5.74355305]
[1741494948288,0.31277246,588.27,587.28,5.74355305]
[1741494948487,0.29615383,588.24,587.28,5.74355305]
[1741494948688,0.31277246,588.23,587.28,5.74355305]
[1741494949394,0.29615383,588.24,587.28,5.74355305]
[1741494949596,0.31283988,588.23,587.28,5.74355305]
[1741494951490,0.60901639,588.22,587.28,5.74355305]
[1741494951694,0.29617651,588.22,587.28,5.74355305]
[1741494954094,0.3399626,588.3,587.28,5.74355305]
[1741494954295,0.29616895,588.21,587.28,5.74355305]
[1741494954495,0.3399626,588.3,587.28,5.74355305]
[1741494955496,0.29612863,588.29,587.28,5.74355305]
[1741494957798,0.33997416,588.28,587.28,5.403]
[1741494960294,0.31284972,588.27,587.28,5.403]
[1741494961398,0.29618408,588.26,587.28,5.403]
[1741494961593,0.31284972,588.25,587.28,5.403]
[1741494962193,0.29618408,588.26,587.28,5.403]
[1741494963193,0.33997416,588.28,587.28,5.403]
[1741494963593,0.29617147,588.25,587.28,5.403]
[1741494964000,0.33999728,588.24,587.28,5.403]
[1741494967501,0.29615383,588.23,587.28,5.403]
[1741494967800,0.34000884,588.22,587.28,5.403]
[1741494970398,0.29615635,588.21,587.28,5.403]
[1741494970600,0.3400204,588.2,587.28,5.403]
[1741494973804,0.312896,588.19,587.28,5.403]
[1741494974008,0.65292218,588.19,587.28,5.403]
[1741494974206,0.312896,588.18,587.28,5.403]
[1741494975910,0.34002618,588.19,587.28,5.403]
[1741494976507,0.29613493,588.18,587.28,5.403]
[1741494978113,0.34002618,588.19,587.28,5.403]
[1741494979407,0.29615761,588.18,587.28,5.403]
[1741494981117,0.34002618,588.19,587.28,5.403]
[1741494982414,0.29615131,588.18,587.28,5.403]
[1741494984213,0.34003196,588.18,587.28,5.403]
[1741494985415,0.29616391,588.17,587.28,5.403]
[1741494985616,0.34004352,588.16,587.28,5.403]
[1741494986217,0.31295354,588.15,587.28,5.403]
[1741494986412,0.34005508,588.14,587.28,5.403]
[1741494986614,0.31295354,588.13,587.28,5.403]
[1741494986919,0.34006665,588.12,587.28,5.403]
[1741494987115,0.31295354,588.11,587.28,5.403]
[1741494988420,0.29624459,588.1,587.28,5.403]
[1741494988620,0.31295354,588.09,587.28,5.403]
[1741494990620,0.31295354,588.11,587.28,5.403]
[1741494991219,0.31295354,588.1,587.28,5.403]
[1741494991416,0.31295354,588.09,587.28,5.403]
[1741494991620,0.31295354,588.08,587.28,5.403]
[1741494991819,0.31295354,588.07,587.28,5.403]
[1741494992021,1.26952077,587.82,587.28,5.403]
[1741494992222,0.31295354,587.81,587.28,5.403]
[1741494992617,1.26952077,587.82,587.28,5.403]
[1741494992618,0.31294002,587.8,587.28,5.403]
[1741494992821,0.31294002,587.79,587.28,5.403]
[1741494993122,0.31294002,587.78,587.28,5.403]
[1741494993321,0.31294002,587.81,587.28,5.403]
[1741494993523,1.26952077,587.82,587.28,5.403]
[1741494994024,0.3129015,587.81,587.28,5.403]
[1741494995525,1.26952077,587.82,587.28,5.403]
[1741494995824,0.29624207,587.8,587.28,5.403]
[1741494996223,1.26952077,587.82,587.28,5.403]
[1741494996827,1.26952077,588.0,587.28,5.403]
[1741494997429,0.2961992,587.99,587.28,5.403]
[1741494999230,0.34006665,588.12,587.28,5.403]
[1741494999431,0.31281929,588.11,587.28,5.403]
[1741495000428,0.29618156,588.1,587.28,5.403]
[1741495000625,0.31281929,588.09,587.28,5.403]
[1741495001226,0.29618156,588.1,587.28,5.403]
[1741495001429,0.29618156,588.1,587.28,5.74355305]
[1741495001626,0.29618156,588.1,587.29,0.34054725]
[1741495005027,0.29618156,588.1,587.29,3.66854725]
[1741495005230,1.26952077,588.65,587.29,5.72854725]
[1741495005432,0.65248502,588.64,587.29,5.72854725]
[1741495005629,0.65249079,588.63,587.29,5.72854725]
[1741495005830,0.65249656,588.62,587.29,5.72854725]
[1741495006031,0.65250233,588.61,587.29,5.72854725]
[1741495006332,1.26952077,588.65,587.29,5.72854725]
[1741495006333,0.65250811,588.6,587.29,5.72854725]
[1741495006531,0.65251388,588.59,587.29,5.72854725]
[1741495006726,0.65251965,588.58,587.29,5.72854725]
[1741495006929,0.33980665,588.57,587.29,5.72854725]
[1741495007532,0.31271728,588.56,587.29,5.72854725]
[1741495007733,0.33981819,588.55,587.29,5.72854725]
[1741495008031,0.31271728,588.54,587.29,5.72854725]
[1741495008332,0.33982974,588.53,587.29,5.72854725]
[1741495008631,0.31271728,588.52,587.29,5.72854725]
[1741495009230,0.33984129,588.51,587.29,5.72854725]
[1741495009428,0.31271728,588.5,587.29,5.72854725]
[1741495010730,0.33985284,588.49,587.29,5.72854725]
[1741495010926,0.31271728,588.48,587.29,5.72854725]
[1741495011127,0.33986439,588.47,587.29,5.72854725]
[1741495011334,0.31271728,588.46,587.29,5.72854725]
[1741495011532,0.65258744,588.46,587.29,5.72854725]
[1741495011732,0.31271728,588.45,587.29,5.72854725]
[1741495012333,0.29611477,588.44,587.29,5.72854725]
[1741495012533,0.31271728,588.43,587.29,5.72854725]
[1741495012832,0.29611477,588.44,587.29,5.72854725]
[1741495013033,0.31274257,588.43,587.29,5.72854725]
[1741495014436,0.31274257,588.45,587.29,5.72854725]
[1741495014637,0.31274257,588.44,587.29,5.72854725]
[1741495015037,0.31274257,588.43,587.29,5.72854725]
[1741495015238,0.31274257,588.45,587.29,5.72854725]
[1741495015440,0.29610217,588.43,587.29,5.72854725]
[1741495015637,0.31274257,588.42,587.29,5.72854725]
[1741495017439,0.33987016,588.46,587.29,5.72854725]
[1741495017440,0.31274257,588.41,587.29,5.72854725]
[1741495017740,0.31274257,588.4,587.29,5.72854725]
[1741495017942,0.31274257,588.45,587.29,5.72854725]
[1741495018145,0.31274257,588.39,587.29,5.72854725]
[1741495018347,0.29607698,588.44,587.29,5.72854725]
[1741495019845,0.31266792,588.38,587.29,5.72854725]
[1741495020042,0.29607698,588.44,587.29,5.72854725]
[1741495020348,0.31266518,588.43,587.29,5.72854725]
[1741495020547,0.31266518,588.45,587.29,5.72854725]
[1741495020742,0.31266518,588.44,587.29,5.72854725]
[1741495020948,0.31266518,588.45,587.29,5.72854725]
[1741495021149,0.31266518,588.43,587.29,5.72854725]
[1741495021351,0.31266518,588.42,587.29,5.72854725]
[1741495021550,0.29607698,588.44,587.29,5.72854725]
[1741495021751,0.31266518,588.43,587.29,5.72854725]
[1741495023557,0.60873712,588.42,587.29,5.72854725]
[1741495023752,0.31266518,588.41,587.29,5.72854725]
[1741495024952,0.31266518,588.41,587.29,5.08554725]
[1741495025258,0.3126556,588.4,587.29,5.08554725]
[1741495025458,0.3126556,588.41,587.29,5.08554725]
[1741495026456,0.3126556,588.45,587.29,5.08554725]
[1741495026656,0.3126556,588.44,587.29,5.08554725]
[1741495026857,0.3126556,588.45,587.29,5.08554725]
[1741495027159,0.3126556,588.44,587.29,5.08554725]
[1741495027355,0.29607698,588.44,587.29,5.08554725]
[1741495027558,0.3126556,588.43,587.29,5.08554725]
[1741495029358,0.60873762,588.42,587.29,5.08554725]
[1741495029554,0.3126556,588.41,587.29,5.08554725]
[1741495030861,0.31265849,588.4,587.29,5.08554725]
[1741495031055,0.31265849,588.41,587.29,5.08554725]
[1741495032457,0.31265849,588.43,587.29,5.08554725]
[1741495032660,1.26952077,588.44,587.29,5.08554725]
[1741495032962,0.31264705,588.43,587.29,5.08554725]
[1741495033362,0.29606439,588.42,587.29,5.08554725]
[1741495033555,0.31264705,588.41,587.29,5.08554725]
[1741495033756,1.26952077,588.35,587.29,5.08554725]
[1741495036366,0.29606439,588.42,587.29,5.08554725]
[1741495036567,0.31262504,588.41,587.29,5.08554725]
[1741495038463,0.60869194,588.4,587.29,5.08554725]
[1741495038665,0.31262504,588.39,587.29,5.08554725]
[1741495040163,0.2960669,588.4,587.29,5.08554725]
[1741495041268,0.33987016,588.46,587.29,5.08554725]
[1741495041466,0.29605179,588.39,587.29,5.08554725]
[1741495041662,0.33987016,588.46,587.29,5.08554725]
[1741495042366,0.31261673,588.45,587.29,5.08554725]
[1741495042567,0.29602787,588.45,587.29,5.08554725]
[1741495044264,0.33987016,588.46,587.29,5.08554725]
[1741495045367,0.2960115,588.45,587.29,5.08554725]
[1741495046766,0.3126126,588.44,587.29,5.08554725]
[1741495047271,0.33987016,588.46,587.29,5.08554725]
[1741495047473,0.29605305,588.43,587.29,5.08554725]
[1741495050176,0.31260764,588.42,587.29,5.08554725]
[1741495050374,0.31260764,588.45,587.29,5.08554725]
[1741495050570,0.29605179,588.42,587.29,5.08554725]
[1741495050776,0.31260764,588.41,587.29,5.08554725]
[1741495053373,1.26952077,588.42,587.29,5.08554725]
[1741495053578,0.31260764,588.41,587.29,5.08554725]
[1741495054372,0.29605683,588.4,587.29,5.08554725]
[1741495054579,0.31260764,588.39,587.29,5.08554725]
[1741495056574,0.29605935,588.38,587.29,5.08554725]
[1741495056776,0.31260764,588.37,587.29,5.08554725]
[1741495057683,1.58212841,588.37,587.29,5.08554725]
[1741495057883,0.31260764,588.36,587.29,5.08554725]
[1741495058685,1.26952077,588.37,587.29,5.08554725]
[1741495058886,0.31261857,588.36,587.29,5.08554725]
[1741495059480,0.29606313,588.35,587.29,5.08554725]
[1741495059682,0.31261857,588.34,587.29,5.08554725]
[1741495062382,0.31261857,588.35,587.29,5.08554725]
[1741495062686,0.29606564,588.33,587.29,5.08554725]
[1741495062882,0.31260401,588.32,587.29,5.08554725]
[1741495064386,0.31260839,588.31,587.29,5.08554725]
[1741495064588,0.31260839,588.3,587.29,5.08554725]
[1741495064890,0.31260839,588.29,587.29,5.08554725]
[1741495065089,0.29606564,588.33,587.29,5.08554725]
[1741495065090,0.31260839,588.32,587.29,5.08554725]
[1741495065289,0.31260839,588.31,587.29,5.08554725]
[1741495065589,0.31260839,588.3,587.29,5.08554725]
[1741495068291,1.26952077,588.33,587.29,5.08554725]
[1741495068292,0.31260839,588.32,587.29,5.08554725]
[1741495068692,0.29607068,588.29,587.29,5.08554725]
[1741495068991,0.31260839,588.28,587.29,5.08554725]
[1741495070792,0.31261705,588.27,587.29,5.08554725]
[1741495071186,0.31261705,588.26,587.29,5.08554725]
[1741495071385,0.31261705,588.31,587.29,5.08554725]
[1741495071585,0.2960732,588.26,587.29,5.08554725]
[1741495077201,1.26952077,588.41,587.29,5.08554725]
[1741495077503,0.29605809,588.25,587.29,5.08554725]
[1741495077702,1.26952077,588.41,587.29,5.08554725]
[1741495077903,0.31260351,588.4,587.29,5.08554725]
[1741495078498,0.29605809,588.39,587.29,5.08554725]
[1741495078698,0.31260351,588.38,587.29,5.08554725]
[1741495079904,0.29605809,588.39,587.29,5.08554725]
[1741495080103,0.31259916,588.37,587.29,5.08554725]
[1741495080303,0.31259916,588.36,587.29,5.08554725]
[1741495080500,0.31259916,588.38,587.29,5.08554725]
[1741495080700,0.29605809,588.39,587.29,5.08554725]
[1741495081306,0.31259586,588.38,587.29,5.08554725]
[1741495083406,0.31259586,588.45,587.29,5.08554725]
[1741495083703,0.2960455,588.37,587.29,5.08554725]
[1741495083907,1.26952077,588.46,587.29,5.08554725]
[1741495084108,0.31258436,588.45,587.29,5.08554725]
[1741495084605,0.29603668,588.44,587.29,5.08554725]
[1741495084808,0.31258436,588.43,587.29,5.08554725]
[1741495086310,1.26952077,588.49,587.29,5.08554725]
[1741495086503,0.60862593,588.42,587.29,5.08554725]
[1741495086707,0.2960392,588.42,587.29,5.08554725]
[1741495086910,0.31258673,588.41,587.29,5.08554725]
[1741495087106,0.31258673,588.46,587.29,5.08554725]
[1741495087610,0.29603542,588.45,587.29,5.08554725]
[1741495087811,0.31258673,588.44,587.29,5.08554725]
[1741495089309,0.31258673,588.46,587.29,5.08554725]
[1741495089506,1.26952077,588.47,587.29,5.08554725]
[1741495089507,0.29603794,588.43,587.29,5.08554725]
[1741495089813,0.31258673,588.42,587.29,5.08554725]
[1741495090209,0.29603794,588.43,587.29,5.08554725]
[1741495090408,0.31261996,588.42,587.29,5.08554725]
[1741495092113,0.31261813,588.41,587.29,5.08554725]
[1741495092316,0.31261813,588.42,587.29,5.08554725]
[1741495092614,0.31261813,588.41,587.29,5.08554725]
[1741495092813,0.31261813,588.55,587.29,5.08554725]
[1741495093011,0.31261813,588.54,587.29,5.08554725]
[1741495093213,0.31261813,588.55,587.29,5.08554725]
[1741495093415,0.29603668,588.53,587.29,5.08554725]
[1741495093617,0.31261813,588.52,587.29,5.08554725]
[1741495094009,0.29603668,588.53,587.29,5.08554725]
[1741495094212,0.31262155,588.52,587.29,5.08554725]
[1741495098517,0.31262155,588.59,587.29,5.08554725]
[1741495098719,0.31262155,588.62,587.29,5.08554725]
[1741495098918,0.31262155,588.61,587.29,5.08554725]
[1741495099117,1.26952077,588.63,587.29,5.08554725]
[1741495099118,0.31262155,588.6,587.29,5.08554725]
[1741495099319,0.31262155,588.59,587.29,5.08554725]
[1741495099511,0.31262155,588.58,587.29,5.08554725]
[1741495099713,0.31262155,588.59,587.29,5.08554725]
[1741495101518,0.31262155,588.62,587.29,5.08554725]
[1741495101719,0.31262155,588.58,587.29,5.08554725]
[1741495101921,1.58214232,588.57,587.29,5.08554725]
[1741495102221,0.31262155,588.56,587.29,5.08554725]
[1741495102424,0.60864186,588.56,587.29,5.08554725]
[1741495102723,0.31262155,588.55,587.29,5.08554725]
[1741495104519,1.26952077,588.57,587.29,5.08554725]
[1741495104520,0.31262155,588.54,587.29,5.08554725]
[1741495104717,0.31262155,588.56,587.29,5.08554725]
[1741495104918,0.31262155,588.55,587.29,5.08554725]
[1741495105120,0.31262155,588.56,587.29,5.08554725]
[1741495105321,0.29602031,588.54,587.29,5.08554725]
[1741495105620,0.31258293,588.53,587.29,5.08554725]
[1741495106924,1.26952077,588.5,587.29,5.08554725]
[1741495107425,0.31258241,588.49,587.29,5.08554725]
[1741495107622,0.60861154,588.49,587.29,5.08554725]
[1741495107822,0.31258241,588.48,587.29,5.08554725]
[1741495109325,1.26952077,588.43,587.29,5.08554725]
[1741495109624,0.31258241,588.42,587.29,5.08554725]
[1741495110625,0.29603794,588.41,587.29,5.08554725]
[1741495110825,0.31258241,588.4,587.29,5.08554725]
[1741495116528,0.29604046,588.39,587.29,5.08554725]
[1741495116727,0.31258241,588.38,587.29,5.08554725]
[1741495118531,0.29604046,588.39,587.29,5.08554725]
[1741495118731,0.31257821,588.38,587.29,5.08554725]
[1741495119532,0.29604298,588.37,587.29,5.08554725]
[1741495119732,0.31257821,588.36,587.29,5.08554725]
[1741495120431,0.31257901,588.35,587.29,5.08554725]
[1741495120635,0.31257901,588.36,587.29,5.08554725]
[1741495122432,0.31257901,588.46,587.29,5.08554725]
[1741495122635,0.2960455,588.35,587.29,5.08554725]
[1741495122830,0.31257901,588.34,587.29,5.08554725]
[1741495123031,0.31257901,588.46,587.29,5.08554725]
[1741495123736,0.2960329,588.45,587.29,5.08554725]
[1741495123938,0.31257901,588.44,587.29,5.08554725]
[1741495125535,0.31257901,588.46,587.29,5.08554725]
[1741495125941,1.26952077,588.47,587.29,5.08554725]
[1741495126139,0.31258286,588.46,587.29,5.08554725]
[1741495126541,0.60861576,588.46,587.29,5.08554725]
[1741495126740,0.31258286,588.45,587.29,5.08554725]
[1741495127844,1.26952077,588.41,587.29,5.08554725]
[1741495128045,0.31258071,588.4,587.29,5.08554725]
[1741495128445,0.29604046,588.39,587.29,5.08554725]
[1741495128641,0.31258071,588.38,587.29,5.08554725]
[1741495131545,0.29604298,588.37,587.29,5.08554725]